fUST/lending_fUST_20250828
["ID","MTS","AMOUNT","RATE_DAILY","PERIOD"]
[381853195,1756371048758,-1266.63,0.00019452,2]
[381853197,1756371048768,-480.0,0.00019452,2]
[381853199,1756371048778,-625.3,0.00019452,2]
[381853201,1756371048787,-480.0,0.00019452,2]
[381853203,1756371048797,-2797.99,0.00019452,2]
[381853205,1756371048806,-480.0,0.00019452,2]
[381853207,1756371048815,-506.38,0.00019452,2]
[381853209,1756371048825,-480.0,0.00019452,2]
[381853211,1756371048835,-480.0,0.00019452,2]
[381853213,1756371048845,-501.76,0.00019452,2]
[381853215,1756371048855,-480.0,0.00019452,2]
[381853217,1756371048865,-480.0,0.00019452,2]
[381853219,1756371048875,-986.48,0.00019452,2]
[381853221,1756371048885,-2144.82,0.00019452,2]
[381853223,1756371048895,-480.0,0.00019452,2]
[381853225,1756371048905,-480.0,0.00019452,2]
[381853227,1756371048915,-480.0,0.00019452,2]
[381853229,1756371048924,-481.74337197,0.00019452,2]
[381853232,1756371048935,-480.0,0.00019452,2]
[381853234,1756371048946,-1203.91,0.00019452,2]
[381853236,1756371048956,-480.0,0.00019452,2]
[381853238,1756371048966,-480.0,0.00019452,2]
[381853240,1756371048976,-480.0,0.00019452,2]
[381853242,1756371048986,-480.0,0.00019452,2]
[381853244,1756371048995,-480.0,0.00019452,2]
[381853246,1756371049006,-480.0,0.00019452,2]
[381853248,1756371049015,-480.0,0.00019452,2]
[381853250,1756371049025,-480.0,0.00019452,2]
[381853252,1756371049035,-1573.11,0.00019452,2]
[381853254,1756371049045,-480.0,0.00019452,2]
[381853256,1756371049055,-480.0,0.00019452,2]
[381853258,1756371049064,-480.0,0.00019452,2]
[381853260,1756371049074,-480.0,0.00019452,2]
[381853262,1756371049084,-480.0,0.00019452,2]
[381853264,1756371049094,-480.0,0.00019452,2]
[381853266,1756371049105,-480.0,0.00019452,2]
[381853268,1756371049115,-480.0,0.00019452,2]
[381853270,1756371049124,-480.0,0.00019452,2]
[381853272,1756371049135,-319.73697056,0.00019452,2]
[381853274,1756371049144,-295.90600992,0.00019452,2]
[381853277,1756371049154,-3335.86,0.00019452,2]
[381853278,1756371049164,-480.0,0.00019452,2]
[381853280,1756371049174,-1946.09,0.00019452,2]
[381853282,1756371049184,-480.0,0.00019452,2]
[381853284,1756371049194,-480.0,0.00019452,2]
[381853287,1756371049203,-480.0,0.00019452,2]
[381853289,1756371049213,-2736.72,0.00019452,2]
[381853291,1756371049223,-480.0,0.00019452,2]
[381853293,1756371049233,-480.0,0.00019452,2]
[381853295,1756371049242,-681.82,0.00019452,2]
[381853297,1756371049252,-821.56,0.00019452,2]
[381853299,1756371049262,-480.0,0.00019452,2]
[381853301,1756371049271,-563.16,0.00019452,2]
[381853303,1756371049281,-480.0,0.00019452,2]
[381853305,1756371049291,-519.06,0.00019452,2]
[381853307,1756371049301,-580.5,0.00019452,2]
[381853309,1756371049310,-480.0,0.00019452,2]
[381853311,1756371049320,-480.0,0.00019452,2]
[381853313,1756371049331,-480.0,0.00019452,2]
[381853315,1756371049341,-480.0,0.00019452,2]
[381853317,1756371049351,-480.0,0.00019452,2]
[381853319,1756371049360,-962.38,0.00019452,2]
[381853321,1756371049370,-480.0,0.00019452,2]
[381853323,1756371049380,-983.47,0.00019452,2]
[381853326,1756371049390,-480.0,0.00019452,2]
[381853328,1756371049400,-480.0,0.00019452,2]
[381853330,1756371049411,-1119.29,0.00019452,2]
[381853332,1756371049420,-480.0,0.00019452,2]
[381853334,1756371049430,-618.83,0.00019452,2]
[381853336,1756371049440,-480.0,0.00019452,2]
[381853338,1756371049450,-480.0,0.00019452,2]
[381853340,1756371049460,-1172.44,0.00019452,2]
[381853342,1756371049470,-492.73,0.00019452,2]
[381853344,1756371049480,-480.0,0.00019452,2]
[381853346,1756371049489,-480.0,0.00019452,2]
[381853348,1756371049499,-222.85630151,0.00019452,2]
[381853351,1756371049509,-480.0,0.00019452,2]
[381853353,1756371049518,-1264.75,0.00019452,2]
[381853355,1756371049528,-480.0,0.00019452,2]
[381853357,1756371049538,-480.0,0.00019452,2]
[381853359,1756371049548,-1902.8,0.00019452,2]
[381853361,1756371049557,-480.0,0.00019452,2]
[381853363,1756371049570,-480.0,0.00019452,2]
[381853365,1756371049580,-481.51841144,0.00019452,2]
[381853367,1756371049590,-559.42,0.00019452,2]
[381853369,1756371049600,-3043.26,0.00019452,2]
[381853371,1756371049612,-510.43,0.00019452,2]
[381853373,1756371049622,-4218.18,0.00019452,2]
[381853376,1756371049632,-480.0,0.00019452,2]
[381853377,1756371049643,-480.0,0.00019452,2]
[381853379,1756371049652,-480.0,0.00019452,2]
[381853382,1756371049662,-480.0,0.00019452,2]
[381853384,1756371049672,-481.97826303,0.00019452,2]
[381853386,1756371049681,-525.9,0.00019452,2]
[381853388,1756371049691,-480.0,0.00019452,2]
[381853390,1756371049701,-480.0,0.00019452,2]
[381853392,1756371049710,-480.0,0.00019452,2]
[381853394,1756371049719,-480.0,0.00019452,2]
[381853396,1756371049729,-480.0,0.00019452,2]
[381853398,1756371049738,-480.0,0.00019452,2]
[381853400,1756371049748,-618.96,0.00019452,2]
[381853402,1756371049757,-480.0,0.00019452,2]
[381853404,1756371049767,-480.0,0.00019452,2]
[381853406,1756371049777,-480.0,0.00019452,2]
[381853408,1756371049787,-1826.5,0.00019452,2]
[381853410,1756371049796,-3227.45,0.00019452,2]
[381853412,1756371049806,-535.01,0.00019452,2]
[381853414,1756371049815,-480.0,0.00019452,2]
[381853417,1756371049826,-480.0,0.00019452,2]
[381853419,1756371049837,-480.0,0.00019452,2]
[381853421,1756371049847,-1086.93,0.00019452,2]
[381853423,1756371049856,-1358.14,0.00019452,2]
[381853425,1756371049865,-480.0,0.00019452,2]
[381853427,1756371049875,-480.0,0.00019452,2]
[381853429,1756371049885,-1256.86,0.00019452,2]
[381853431,1756371049894,-1905.96,0.00019452,2]
[381853433,1756371049903,-480.0,0.00019452,2]
[381853435,1756371049913,-544.1,0.00019452,2]
[381853437,1756371049923,-480.0,0.00019452,2]
[381853439,1756371049933,-608.72,0.00019452,2]
[381853441,1756371049942,-716.76,0.00019452,2]
[381853443,1756371049952,-2710.88,0.00019452,2]
[381853445,1756371049962,-382.11898513,0.00019452,2]
[381853447,1756371049972,-480.0,0.00019452,2]
[381853449,1756371049981,-480.0,0.00019452,2]
[381853452,1756371049991,-697.79,0.00019452,2]
[381853453,1756371050001,-480.0,0.00019452,2]
[381853455,1756371050011,-760.52,0.00019452,2]
[381853458,1756371050021,-480.0,0.00019452,2]
[381853460,1756371050030,-480.0,0.00019452,2]
[381853462,1756371050041,-480.0,0.00019452,2]
[381853464,1756371050050,-625.72,0.00019452,2]
[381853466,1756371050060,-480.0,0.00019452,2]
[381853468,1756371050069,-480.0,0.00019452,2]
[381853470,1756371050079,-481.2369396,0.00019452,2]
[381853472,1756371050088,-4138.42,0.00019452,2]
[381853474,1756371050098,-431.50523187,0.00019452,2]
[381853476,1756371050107,-480.0,0.00019452,2]
[381853478,1756371050117,-480.0,0.00019452,2]
[381853480,1756371050127,-480.0,0.00019452,2]
[381853482,1756371050136,-579.63,0.00019452,2]
[381853484,1756371050146,-480.0,0.00019452,2]
[381853487,1756371050156,-480.0,0.00019452,2]
[381853489,1756371050166,-582.12,0.00019452,2]
[381853491,1756371050176,-480.0,0.00019452,2]
[381853493,1756371050185,-480.0,0.00019452,2]
[381853495,1756371050195,-480.0,0.00019452,2]
[381853497,1756371050205,-480.0,0.00019452,2]
[381853499,1756371050215,-844.59,0.00019452,2]
[381853501,1756371050226,-480.0,0.00019452,2]
[381853503,1756371050235,-480.0,0.00019452,2]
[381853505,1756371050245,-544.06,0.00019452,2]
[381853507,1756371050255,-1531.28,0.00019452,2]
[381853509,1756371050264,-480.0,0.00019452,2]
[381853511,1756371050274,-480.0,0.00019452,2]
[381853513,1756371050283,-480.0,0.00019452,2]
[381853515,1756371050293,-480.0,0.00019452,2]
[381853517,1756371050303,-480.0,0.00019452,2]
[381853519,1756371050312,-480.0,0.00019452,2]
[381853522,1756371050324,-902.92,0.00019452,2]
[381853524,1756371050334,-480.0,0.00019452,2]
[381853526,1756371050344,-1395.36,0.00019452,2]
[381853528,1756371050353,-482.25436379,0.00019452,2]
[381853530,1756371050363,-1343.28,0.00019452,2]
[381853532,1756371050373,-1053.97,0.00019452,2]
[381853534,1756371050382,-480.0,0.00019452,2]
[381853536,1756371050392,-675.77,0.00019452,2]
[381853538,1756371050401,-480.0,0.00019452,2]
[381853540,1756371050411,-769.9,0.00019452,2]
[381853542,1756371050421,-482.08815828,0.00019452,2]
[381853544,1756371050430,-831.79,0.00019452,2]
[381853546,1756371050440,-682.68,0.00019452,2]
[381853548,1756371050450,-2246.83,0.00019452,2]
[381853550,1756371050460,-2959.75,0.00019452,2]
[381853552,1756371050469,-533.24,0.00019452,2]
[381853554,1756371050479,-480.0,0.00019452,2]
[381853556,1756371050488,-480.0,0.00019452,2]
[381853558,1756371050498,-6173.28,0.00019452,2]
[381853560,1756371050508,-480.0,0.00019452,2]
[381853563,1756371050518,-897.32,0.00019452,2]
[381853565,1756371050528,-480.0,0.00019452,2]
[381853567,1756371050537,-464.23038258,0.00019452,2]
[381853569,1756371050547,-480.0,0.00019452,2]
[381853571,1756371050557,-480.0,0.00019452,2]
[381853573,1756371050570,-480.0,0.00019452,2]
[381853575,1756371050579,-480.0,0.00019452,2]
[381853577,1756371050589,-786.99,0.00019452,2]
[381853579,1756371050600,-480.0,0.00019452,2]
[381853581,1756371050611,-480.0,0.00019452,2]
[381853583,1756371050621,-480.0,0.00019452,2]
[381853585,1756371050631,-480.0,0.00019452,2]
[381853587,1756371050643,-520.44,0.00019452,2]
[381853589,1756371050653,-480.0,0.00019452,2]
[381853591,1756371050662,-3084.25,0.00019452,2]
[381853593,1756371050672,-480.0,0.00019452,2]
[381853595,1756371050682,-480.0,0.00019452,2]
[381853597,1756371050691,-480.0,0.00019452,2]
[381853600,1756371050701,-518.06911963,0.00019452,2]
[381853602,1756371050711,-1000.0,0.00019462,2]
[381853604,1756371050720,-500.0,0.00019473,2]
[381853606,1756371050729,-500.0,0.00019473,2]
[381853608,1756371050738,-500.0,0.00019473,2]
[381853610,1756371050748,-294.545536,0.00019496,2]
[381853612,1756371050758,-250.7293173,0.00019496,2]
[381853614,1756371050768,-425.52029335,0.00019716,2]
[381853616,1756371050777,-232.64478309,0.00019716,2]
[381853618,1756371050787,-12710.44222334,0.00019716,2]
[381853620,1756371050796,-529.67291817,0.00019716,2]
[381853622,1756371050806,-845.47023312,0.00019716,2]
[381853624,1756371050816,-160.0,0.00019716,2]
[381853626,1756371050826,-417.15472785,0.00019716,2]
[381853628,1756371050836,-160.0,0.00019716,2]
[381853631,1756371050847,-216.18903889,0.00019716,2]
[381853651,1756371051017,-160.0,0.00019716,2]
[381853653,1756371051027,-160.0,0.00019716,2]
[381853655,1756371051036,-160.0,0.00019716,2]
[381853657,1756371051045,-160.0,0.00019716,2]
[381853659,1756371051055,-160.0,0.00019716,2]
[381853661,1756371051064,-160.0,0.00019716,2]
[381853663,1756371051074,-217.27834477,0.00019716,2]
[381853665,1756371051083,-1000.0,0.00019721,2]
[381853667,1756371051092,-1000.0,0.00019721,2]
[381853669,1756371051101,-1000.0,0.00019721,2]
[381853671,1756371051111,-1000.0,0.00019721,2]
[381853673,1756371051120,-1000.0,0.00019721,2]
[381853675,1756371051129,-284.17997351,0.00019721,2]
[381853677,1756371051138,-1000.0,0.00019721,2]
[381853679,1756371051147,-1008.88566815,0.00019721,2]
[381853681,1756371051156,-764.06479288,0.00019721,2]
[381853683,1756371051166,-1000.0,0.00019721,2]
[381853685,1756371051175,-502.07979579,0.00019721,2]
[381853687,1756371051185,-1000.0,0.00019721,2]
[381853689,1756371051194,-1000.0,0.00019721,2]
[381853691,1756371051204,-1000.0,0.00019721,2]
[381853693,1756371051214,-1006.19980553,0.00019721,2]
[381853695,1756371051223,-1000.0,0.00019721,2]
[381853698,1756371051233,-1000.0,0.00019721,2]
[381853700,1756371051243,-1000.0,0.00019721,2]
[381853702,1756371051252,-1137.49366838,0.00019721,2]
[381853704,1756371051261,-1010.34617617,0.00019721,2]
[381853706,1756371051270,-1000.0,0.00019721,2]
[381853708,1756371051280,-1000.0,0.00019721,2]
[381853710,1756371051289,-1000.0,0.00019721,2]
[381853712,1756371051298,-1000.0,0.00019721,2]
[381853714,1756371051307,-1000.0,0.00019721,2]
[381853716,1756371051316,-1000.0,0.00019721,2]
[381853718,1756371051326,-1000.0,0.00019721,2]
[381853720,1756371051335,-1000.0,0.00019721,2]
[381853722,1756371051344,-1000.0,0.00019721,2]
[381853724,1756371051354,-1000.0,0.00019721,2]
[381853726,1756371051363,-1000.0,0.00019721,2]
[381853728,1756371051372,-480.0,0.00019726,2]
[381853730,1756371051381,-480.0,0.00019726,2]
[381853732,1756371051391,-480.0,0.00019726,2]
[381853734,1756371051401,-480.0,0.00019726,2]
[381853736,1756371051410,-486.14,0.00019726,2]
[381853738,1756371051419,-480.0,0.00019726,2]
[381853740,1756371051429,-590.59,0.00019726,2]
[381853742,1756371051438,-506.27,0.00019726,2]
[381853744,1756371051447,-554.06,0.00019726,2]
[381853746,1756371051456,-885.12,0.00019726,2]
[381853748,1756371051465,-480.0,0.00019726,2]
[381853750,1756371051474,-480.0,0.00019726,2]
[381853752,1756371051483,-480.0,0.00019726,2]
[381853754,1756371051493,-480.0,0.00019726,2]
[381853756,1756371051502,-480.0,0.00019726,2]
[381853758,1756371051511,-480.0,0.00019726,2]
[381853760,1756371051521,-480.0,0.00019726,2]
[381853762,1756371051530,-480.0,0.00019726,2]
[381853764,1756371051539,-480.0,0.00019726,2]
[381853766,1756371051548,-549.22,0.00019726,2]
[381853768,1756371051558,-767.87,0.00019726,2]
[381853770,1756371051570,-480.0,0.00019726,2]
[381853772,1756371051579,-480.0,0.00019726,2]
[381853774,1756371051590,-480.0,0.00019726,2]
[381853776,1756371051599,-480.0,0.00019726,2]
[381853778,1756371051610,-548.86,0.00019726,2]
[381853780,1756371051619,-480.0,0.00019726,2]
[381853782,1756371051628,-739.29,0.00019726,2]
[381853784,1756371051638,-476.6438276,0.00019726,2]
[381853787,1756371051649,-480.0,0.00019726,2]
[381853789,1756371051659,-480.0,0.00019726,2]
[381853791,1756371051669,-480.0,0.00019726,2]
[381853793,1756371051679,-692.37,0.00019726,2]
[381853795,1756371051688,-497.93,0.00019726,2]
[381853797,1756371051697,-480.0,0.00019726,2]
[381853799,1756371051706,-480.0,0.00019726,2]
[381853801,1756371051716,-186.36644788,0.00019726,2]
[381853803,1756371051725,-480.0,0.00019726,2]
[381853805,1756371051735,-480.0,0.00019726,2]
[381853807,1756371051744,-480.0,0.00019726,2]
[381853809,1756371051754,-480.0,0.00019726,2]
[381853811,1756371051764,-480.0,0.00019726,2]
[381853813,1756371051773,-518.45,0.00019726,2]
[381853815,1756371051782,-1742.0,0.00019726,2]
[381853817,1756371051791,-480.0,0.00019726,2]
[381853819,1756371051801,-480.0,0.00019726,2]
[381853821,1756371051810,-625.97,0.00019726,2]
[381853823,1756371051820,-480.0,0.00019726,2]
[381853825,1756371051829,-480.0,0.00019726,2]
[381853827,1756371051839,-536.00711133,0.00019726,2]
[381853829,1756371051848,-480.0,0.00019726,2]
[381853831,1756371051857,-480.0,0.00019726,2]
[381853833,1756371051867,-480.0,0.00019726,2]
[381853835,1756371051876,-480.0,0.00019726,2]
[381853837,1756371051887,-480.0,0.00019726,2]
[381853839,1756371051897,-480.0,0.00019726,2]
[381853841,1756371051906,-1026.27,0.00019726,2]
[381853843,1756371051915,-542.0,0.00019726,2]
[381853845,1756371051925,-480.0,0.00019726,2]
[381853847,1756371051935,-480.0,0.00019726,2]
[381853849,1756371051944,-508.93,0.00019726,2]
[381853851,1756371051954,-480.0,0.00019726,2]
[381853853,1756371051964,-480.0,0.00019726,2]
[381853855,1756371051975,-480.0,0.00019726,2]
[381853858,1756371051985,-480.0,0.00019726,2]
[381853859,1756371051994,-585.11,0.00019726,2]
[381853862,1756371052004,-740.46,0.00019726,2]
[381853864,1756371052013,-521.59,0.00019726,2]
[381853866,1756371052023,-546.73,0.00019726,2]
[381853868,1756371052032,-279.25517091,0.00019726,2]
[381853870,1756371052041,-480.0,0.00019726,2]
[381853872,1756371052051,-480.0,0.00019726,2]
[381853874,1756371052061,-480.0,0.00019726,2]
[381853876,1756371052070,-579.09,0.00019726,2]
[381853878,1756371052079,-480.0,0.00019726,2]
[381853880,1756371052088,-480.0,0.00019726,2]
[381853882,1756371052098,-500.0,0.00019726,2]
[381853884,1756371052107,-480.0,0.00019726,2]
[381853886,1756371052116,-545.2,0.00019726,2]
[381853888,1756371052125,-480.0,0.00019726,2]
[381853890,1756371052134,-480.0,0.00019726,2]
[381853892,1756371052144,-480.0,0.00019726,2]
[381853894,1756371052155,-820.03,0.00019726,2]
[381853896,1756371052164,-480.0,0.00019726,2]
[381853898,1756371052174,-480.0,0.00019726,2]
[381853900,1756371052183,-480.0,0.00019726,2]
[381853902,1756371052193,-480.0,0.00019726,2]
[381853904,1756371052202,-1293.13,0.00019726,2]
[381853905,1756371052211,-480.0,0.00019726,2]
[381853906,1756371052220,-480.0,0.00019726,2]
[381853907,1756371052229,-550.34,0.00019726,2]
[381853908,1756371052239,-720.04,0.00019726,2]
[381853909,1756371052248,-480.0,0.00019726,2]
[381853910,1756371052257,-688.51,0.00019726,2]
[381853911,1756371052267,-480.0,0.00019726,2]
[381853912,1756371052276,-510.19,0.00019726,2]
[381853913,1756371052285,-573.11,0.00019726,2]
[381853914,1756371052294,-480.0,0.00019726,2]
[381853916,1756371052303,-480.0,0.00019726,2]
[381853918,1756371052312,-480.0,0.00019726,2]
[381853920,1756371052322,-480.0,0.00019726,2]
[381853922,1756371052331,-480.0,0.00019726,2]
[381853923,1756371052340,-480.0,0.00019726,2]
[381853925,1756371052349,-614.11,0.00019726,2]
[381853927,1756371052359,-480.0,0.00019726,2]
[381853929,1756371052368,-2124.31,0.00019726,2]
[381853931,1756371052377,-480.0,0.00019726,2]
[381853933,1756371052387,-480.0,0.00019726,2]
[381853935,1756371052396,-480.0,0.00019726,2]
[381853937,1756371052405,-480.0,0.00019726,2]
[381853939,1756371052415,-480.0,0.00019726,2]
[381853941,1756371052424,-480.0,0.00019726,2]
[381853943,1756371052433,-480.0,0.00019726,2]
[381853945,1756371052442,-480.0,0.00019726,2]
[381853947,1756371052451,-480.0,0.00019726,2]
[381853949,1756371052460,-480.0,0.00019726,2]
[381853951,1756371052469,-514.9,0.00019726,2]
[381853953,1756371052478,-535.14,0.00019726,2]
[381853955,1756371052487,-1210.99,0.00019726,2]
[381853957,1756371052496,-480.0,0.00019726,2]
[381853958,1756371052505,-480.0,0.00019726,2]
[381853960,1756371052514,-480.0,0.00019726,2]
[381853962,1756371052523,-717.12,0.00019726,2]
[381853964,1756371052532,-560.21,0.00019726,2]
[381853966,1756371052542,-480.0,0.00019726,2]
[381853968,1756371052551,-468.87,0.00019726,2]
[381853970,1756371052560,-657.48,0.00019726,2]
[381853972,1756371052575,-551.03,0.00019726,2]
[381853974,1756371052585,-480.0,0.00019726,2]
[381853976,1756371052594,-480.0,0.00019726,2]
[381853978,1756371052603,-480.0,0.00019726,2]
[381853980,1756371052615,-480.0,0.00019726,2]
[381853983,1756371052625,-480.0,0.00019726,2]
[381853985,1756371052634,-663.69,0.00019726,2]
[381853987,1756371052645,-480.0,0.00019726,2]
[381853989,1756371052654,-480.0,0.00019726,2]
[381853991,1756371052663,-480.0,0.00019726,2]
[381853993,1756371052673,-4995.98,0.00019726,2]
[381853995,1756371052682,-480.0,0.00019726,2]
[381853996,1756371052691,-513.4,0.00019726,2]
[381853998,1756371052701,-480.0,0.00019726,2]
[381854000,1756371052710,-480.0,0.00019726,2]
[381854002,1756371052720,-480.0,0.00019726,2]
[381854004,1756371052729,-480.0,0.00019726,2]
[381854006,1756371052738,-897.59,0.00019726,2]
[381854008,1756371052747,-889.47,0.00019726,2]
[381854010,1756371052756,-480.0,0.00019726,2]
[381854012,1756371052765,-480.0,0.00019726,2]
[381854014,1756371052774,-532.74,0.00019726,2]
[381854016,1756371052783,-480.0,0.00019726,2]
[381854018,1756371052792,-480.0,0.00019726,2]
[381854020,1756371052802,-480.0,0.00019726,2]
[381854022,1756371052811,-151.0,0.00019726,2]
[381854024,1756371052820,-151.0,0.00019726,2]
[381854026,1756371052829,-151.0,0.00019726,2]
[381854029,1756371052843,-480.0,0.00019726,2]
[381854031,1756371052857,-151.0,0.00019726,2]
[381854034,1756371052873,-151.57731172,0.00019726,2]
[381854036,1756371052885,-151.0,0.00019726,2]
[381854038,1756371052896,-897.34,0.00019726,2]
[381854041,1756371052908,-151.0,0.00019726,2]
[381854043,1756371052920,-151.0,0.00019726,2]
[381854045,1756371052932,-480.0,0.00019726,2]
[381854048,1756371052945,-151.0,0.00019726,2]
[381854050,1756371052959,-151.0,0.00019726,2]
[381854052,1756371052970,-590.74,0.00019726,2]
[381854055,1756371052983,-151.0,0.00019726,2]
[381854057,1756371052996,-480.0,0.00019726,2]
[381854059,1756371053008,-818.16,0.00019726,2]
[381854062,1756371053020,-480.0,0.00019726,2]
[381854064,1756371053033,-480.0,0.00019726,2]
[381854066,1756371053044,-480.0,0.00019726,2]
[381854068,1756371053057,-1594.33,0.00019726,2]
[381854071,1756371053069,-480.0,0.00019726,2]
[381854073,1756371053082,-480.0,0.00019726,2]
[381854075,1756371053094,-480.0,0.00019726,2]
[381854077,1756371053104,-480.0,0.00019726,2]
[381854080,1756371053115,-480.0,0.00019726,2]
[381854082,1756371053126,-515.25,0.00019726,2]
[381854084,1756371053138,-480.0,0.00019726,2]
[381854086,1756371053150,-480.0,0.00019726,2]
[381854089,1756371053163,-654.95,0.00019726,2]
[381854091,1756371053175,-480.0,0.00019726,2]
[381854093,1756371053188,-480.0,0.00019726,2]
[381854096,1756371053202,-1013.74,0.00019726,2]
[381854098,1756371053215,-480.0,0.00019726,2]
[381854100,1756371053227,-480.0,0.00019726,2]
[381854102,1756371053238,-480.0,0.00019726,2]
[381854104,1756371053248,-480.0,0.00019726,2]
[381854106,1756371053260,-480.0,0.00019726,2]
[381854108,1756371053272,-480.0,0.00019726,2]
[381854111,1756371053286,-480.0,0.00019726,2]
[381854113,1756371053298,-498.86,0.00019726,2]
[381854115,1756371053309,-755.81,0.00019726,2]
[381854117,1756371053320,-480.0,0.00019726,2]
[381854120,1756371053332,-480.0,0.00019726,2]
[381854122,1756371053345,-480.0,0.00019726,2]
[381854124,1756371053356,-480.0,0.00019726,2]
[381854126,1756371053367,-580.89,0.00019726,2]
[381854128,1756371053377,-480.0,0.00019726,2]
[381854130,1756371053388,-480.0,0.00019726,2]
[381854133,1756371053400,-480.0,0.00019726,2]
[381854135,1756371053410,-480.0,0.00019726,2]
[381854137,1756371053421,-480.0,0.00019726,2]
[381854139,1756371053433,-480.0,0.00019726,2]
[381854141,1756371053444,-717.84,0.00019726,2]
[381854143,1756371053456,-480.0,0.00019726,2]
[381854146,1756371053467,-480.0,0.00019726,2]
[381854148,1756371053477,-480.0,0.00019726,2]
[381854150,1756371053489,-480.0,0.00019726,2]
[381854152,1756371053500,-480.0,0.00019726,2]
[381854154,1756371053511,-480.0,0.00019726,2]
[381854157,1756371053522,-480.0,0.00019726,2]
[381854159,1756371053533,-547.91,0.00019726,2]
[381854161,1756371053544,-480.0,0.00019726,2]
[381854163,1756371053555,-603.89,0.00019726,2]
[381854165,1756371053569,-480.0,0.00019726,2]
[381854167,1756371053581,-385.26578969,0.00019726,2]
[381854169,1756371053591,-480.0,0.00019726,2]
[381854172,1756371053603,-2110.2,0.00019726,2]
[381854174,1756371053616,-480.0,0.00019726,2]
[381854176,1756371053628,-480.0,0.00019726,2]
[381854178,1756371053639,-480.0,0.00019726,2]
[381854181,1756371053654,-480.0,0.00019726,2]
[381854183,1756371053665,-480.0,0.00019726,2]
[381854185,1756371053675,-480.0,0.00019726,2]
[381854187,1756371053687,-480.0,0.00019726,2]
[381854189,1756371053699,-480.0,0.00019726,2]
[381854192,1756371053709,-406.40196478,0.00019726,2]
[381854194,1756371053720,-480.0,0.00019726,2]
[381854196,1756371053731,-480.0,0.00019726,2]
[381854198,1756371053742,-480.0,0.00019726,2]
[381854200,1756371053753,-3530.34,0.00019726,2]
[381854203,1756371053764,-602.06924754,0.00019726,2]
[381854205,1756371053775,-480.0,0.00019726,2]
[381854207,1756371053786,-480.0,0.00019726,2]
[381854209,1756371053797,-653.03,0.00019726,2]
[381854211,1756371053808,-151.0,0.00019726,2]
[381854213,1756371053818,-500.0,0.00019726,2]
[381854215,1756371053829,-480.0,0.00019726,2]
[381854218,1756371053841,-501.22,0.00019726,2]
[381854220,1756371053852,-480.0,0.00019726,2]
[381854222,1756371053863,-151.0,0.00019726,2]
[381854224,1756371053874,-151.0,0.00019726,2]
[381854227,1756371053885,-151.0,0.00019726,2]
[381854229,1756371053895,-1266.63,0.00019726,2]
[381854231,1756371053907,-151.0,0.00019726,2]
[381854233,1756371053918,-480.0,0.00019726,2]
[381854236,1756371053930,-625.3,0.00019726,2]